fUST/lending_fUST_20241023
["ID","MTS","AMOUNT","RATE_DAILY","PERIOD"]
[340670356,1729631446359,-151.0,0.0001563,2]
[340670358,1729631446368,-151.0,0.0001563,2]
[340670360,1729631446377,-151.0,0.0001563,2]
[340670362,1729631446387,-339.52177,0.00015632,2]
[340670364,1729631446396,-339.52177,0.00015632,2]
[340670366,1729631446405,-352.033644,0.00015632,2]
[340670368,1729631446415,-352.033644,0.00015632,2]
[340670370,1729631446425,-214.235721,0.00015632,2]
[340670372,1729631446434,-214.235721,0.00015632,2]
[340670374,1729631446444,-660.747296,0.00015632,2]
[340670376,1729631446453,-660.747296,0.00015632,2]
[340670379,1729631446463,-194.353004,0.00015632,2]
[340670381,1729631446473,-194.353004,0.00015632,2]
[340670383,1729631446482,-151.0,0.00015632,2]
[340670385,1729631446491,-185.836396,0.00015632,2]
[340670387,1729631446502,-431.640541,0.00015632,2]
[340670388,1729631446511,-431.640541,0.00015632,2]
[340670390,1729631446519,-151.0,0.00015632,2]
[340670392,1729631446529,-151.0,0.00015632,2]
[340670394,1729631446539,-151.0,0.00015632,2]
[340670396,1729631446548,-151.0,0.0001564,2]
[340670398,1729631446558,-151.0,0.0001564,2]
[340670400,1729631446568,-151.0,0.0001564,2]
[340670402,1729631446577,-151.0,0.0001564,2]
[340670404,1729631446586,-151.0,0.0001564,2]
[340670406,1729631446596,-151.0,0.0001564,2]
[340670408,1729631446606,-151.0,0.0001564,2]
[340670410,1729631446616,-151.0,0.0001564,2]
[340670412,1729631446627,-151.0,0.0001564,2]
[340670414,1729631446637,-151.0,0.0001564,2]
[340670416,1729631446648,-151.0,0.0001564,2]
[340670418,1729631446657,-151.0,0.0001564,2]
[340670420,1729631446666,-151.0,0.0001564,2]
[340670422,1729631446676,-290.268249,0.0001564,2]
[340670424,1729631446686,-151.0,0.0001564,2]
[340670426,1729631446696,-151.046111,0.0001564,2]
[340670428,1729631446705,-151.0,0.0001564,2]
[340670430,1729631446716,-151.0,0.0001564,2]
[340670432,1729631446726,-217.108591,0.0001564,2]
[340670434,1729631446735,-403.461347,0.0001564,2]
[340670437,1729631446746,-403.461347,0.0001564,2]
[340670439,1729631446756,-151.0,0.0001564,2]
[340670440,1729631446766,-151.0,0.0001564,2]
[340670441,1729631446776,-151.0,0.0001564,2]
[340670442,1729631446786,-156.263212,0.0001564,2]
[340670443,1729631446796,-151.0,0.0001564,2]
[340670444,1729631446805,-748.671272,0.0001564,2]
[340670445,1729631446815,-748.671272,0.0001564,2]
[340670446,1729631446825,-151.0,0.00015641,2]
[340670447,1729631446835,-151.0,0.00015641,2]
[340670448,1729631446845,-151.0,0.00015641,2]
[340670449,1729631446855,-151.0,0.00015641,2]
[340670450,1729631446867,-155.591204,0.00015641,2]
[340670451,1729631446878,-151.0,0.00015641,2]
[340670452,1729631446887,-151.0,0.00015641,2]
[340670453,1729631446897,-151.0,0.00015641,2]
[340670454,1729631446906,-151.0,0.00015641,2]
[340670455,1729631446915,-151.0,0.00015641,2]
[340670456,1729631446925,-151.0,0.00015641,2]
[340670457,1729631446934,-217.108591,0.00015641,2]
[340670458,1729631446944,-403.461347,0.00015641,2]
[340670459,1729631446953,-403.461347,0.00015641,2]
[340670460,1729631446964,-151.0,0.00015641,2]
[340670461,1729631446974,-156.263212,0.00015641,2]
[340670462,1729631446983,-151.0,0.00015641,2]
[340670463,1729631446993,-309.556708,0.00015641,2]
[340670464,1729631447002,-309.556708,0.00015641,2]
[340670465,1729631447011,-748.671272,0.00015641,2]
[340670466,1729631447022,-748.671272,0.00015641,2]
[340670467,1729631447032,-203.095187,0.00015641,2]
[340670468,1729631447041,-203.095187,0.00015641,2]
[340670469,1729631447051,-151.0,0.00015641,2]
[340670470,1729631447060,-339.52177,0.00015641,2]
[340670471,1729631447071,-220.934725,0.00015641,2]
[340670472,1729631447084,-339.52177,0.00015641,2]
[340670473,1729631447095,-220.934725,0.00015641,2]
[340670474,1729631447105,-352.033644,0.00015641,2]
[340670476,1729631447292,-352.033644,0.00015641,2]
[340670478,1729631447303,-214.235721,0.00015641,2]
[340670480,1729631447313,-214.235721,0.00015641,2]
[340670482,1729631447322,-660.747296,0.00015641,2]
[340670483,1729631447331,-371.66993329,0.00015641,2]
[340670794,1729631604970,150.2,0.00022,60]
[340670795,1729632043454,157.0,0.00022,60]
[340670863,1729632638566,-250.0,0.00013645,2]
[340670864,1729632638576,-400.0,0.00013973,2]
[340670865,1729632638585,-6929.0287707,0.00014317,2]
[340670866,1729632638594,-157.0,0.000144,2]
[340670867,1729632638604,-166.665143,0.00014438,2]
[340670868,1729632638613,-300.0,0.00014999,2]
[340670869,1729632638624,-300.0,0.00014999,2]
[340670870,1729632638633,-521.93899784,0.00014999,2]
[340670871,1729632638642,-228.73991219,0.00015,2]
[340670872,1729632638652,-58397.938896,0.00015,2]
[340670873,1729632638662,-465.01120281,0.00015096,2]
[340670874,1729632638671,-166.665143,0.0001519,2]
[340670875,1729632638680,-286.38032778,0.00015542,2]
[340670876,1729632638691,-174.62220377,0.00015563,2]
[340670877,1729632638700,-150.112233,0.000156,2]
[340670878,1729632638711,-306.0,0.000156,2]
[340670879,1729632638722,-584.20926549,0.0001564,2]
[340670880,1729632638731,-151.0,0.00015642,2]
[340670881,1729632638740,-151.0,0.00015642,2]
[340670882,1729632638750,-151.0,0.00015642,2]
[340670883,1729632638759,-151.0,0.00015642,2]
[340670884,1729632638771,-293.2943,0.00015642,2]
[340670885,1729632638782,-151.0,0.00015642,2]
[340670887,1729632638791,-160.317822,0.00015642,2]
[340670888,1729632638800,-151.0,0.00015642,2]
[340670889,1729632638809,-151.0,0.00015642,2]
[340670890,1729632638820,-151.0,0.00015642,2]
[340670891,1729632638829,-151.0,0.00015642,2]
[340670892,1729632638838,-151.0,0.00015642,2]
[340670893,1729632638848,-151.0,0.00015642,2]
[340670894,1729632638858,-151.0,0.00015642,2]
[340670895,1729632638867,-151.0,0.00015642,2]
[340670896,1729632638876,-151.0,0.00015642,2]
[340670897,1729632638885,-152.028568,0.00015642,2]
[340670898,1729632638894,-155.028872,0.00015642,2]
[340670899,1729632638903,-203.713062,0.00015642,2]
[340670900,1729632638912,-203.713062,0.00015642,2]
[340670901,1729632638921,-151.0,0.00015642,2]
[340670902,1729632638931,-151.0,0.00015642,2]
[340670903,1729632638940,-151.0,0.00015642,2]
[340670904,1729632638949,-151.0,0.00015642,2]
[340670905,1729632638958,-151.0,0.00015642,2]
[340670906,1729632638968,-151.0,0.00015642,2]
[340670907,1729632638978,-151.0,0.00015642,2]
[340670908,1729632638988,-274.619928,0.00015642,2]
[340670909,1729632638997,-223.902366,0.00015642,2]
[340670910,1729632639007,-201.282673,0.00015642,2]
[340670911,1729632639017,-201.282673,0.00015642,2]
[340670912,1729632639027,-151.0,0.00015642,2]
[340670913,1729632639036,-333.528896,0.00015642,2]
[340670914,1729632639045,-151.0,0.00015642,2]
[340670915,1729632639055,-181.347103,0.00015642,2]
[340670916,1729632639064,-181.347103,0.00015642,2]
[340670917,1729632639073,-163.286891,0.00015642,2]
[340670918,1729632639082,-151.0,0.00015642,2]
[340670919,1729632639092,-692.431305,0.00015642,2]
[340670920,1729632639102,-692.431305,0.00015642,2]
[340670921,1729632639111,-288.203003,0.00015652,2]
[340670922,1729632639120,-151.0,0.00015652,2]
[340670923,1729632639130,-151.0,0.00015652,2]
[340670924,1729632639139,-151.0,0.00015652,2]
[340670925,1729632639148,-203.713062,0.00015652,2]
[340670926,1729632639157,-151.0,0.00015652,2]
[340670927,1729632639167,-151.0,0.00015652,2]
[340670928,1729632639176,-151.0,0.00015652,2]
[340670929,1729632639186,-296.254282,0.00015652,2]
[340670930,1729632639198,-151.0,0.00015652,2]
[340670931,1729632639208,-151.0,0.00015652,2]
[340670932,1729632639219,-151.0,0.00015652,2]
[340670933,1729632639228,-274.619928,0.00015652,2]
[340670934,1729632639240,-201.282673,0.00015652,2]
[340670935,1729632639252,-201.282673,0.00015652,2]
[340670936,1729632639262,-333.528896,0.00015652,2]
[340670937,1729632639272,-151.0,0.00015652,2]
[340670938,1729632639281,-181.347103,0.00015652,2]
[340670939,1729632639290,-37.50473095,0.00015652,2]
[340670940,1729632639303,-143.84237205,0.00015652,2]
[340670941,1729632639314,-151.0,0.00015652,2]
[340670942,1729632639325,-151.0,0.00015652,2]
[340670943,1729632639335,-151.0,0.00015652,2]
[340670944,1729632639344,-163.286891,0.00015652,2]
[340670945,1729632639354,-151.0,0.00015652,2]
[340670946,1729632639364,-151.0,0.00015652,2]
[340670947,1729632639373,-692.431305,0.00015652,2]
[340670948,1729632639382,-452.34323522,0.00015652,2]
[340670949,1729632639394,-240.08806978,0.00015652,2]
[340670950,1729632639404,-443.188168,0.00015652,2]
[340670951,1729632639413,-443.188168,0.00015652,2]
[340670952,1729632639422,-151.0,0.00015652,2]
[340670953,1729632639433,-151.0,0.00015652,2]
[340670954,1729632639442,-151.0,0.00015652,2]
[340670955,1729632639451,-240.025701,0.00015652,2]
[340670956,1729632639461,-240.025701,0.00015652,2]
[340670957,1729632639470,-267.123834,0.00015652,2]
[340670958,1729632639480,-267.123834,0.00015652,2]
[340670959,1729632639489,-226.320187,0.00015652,2]
[340670960,1729632639498,-226.320187,0.00015652,2]
[340670961,1729632639508,-151.0,0.00015652,2]
[340670962,1729632639518,-151.0,0.00015652,2]
[340670963,1729632639527,-151.0,0.00015652,2]
[340670964,1729632639536,-151.0,0.00015652,2]
[340670965,1729632639546,-151.0,0.00015652,2]
[340670966,1729632639555,-151.0,0.00015652,2]
[340670967,1729632639564,-246.134025,0.00015652,2]
[340670968,1729632639573,-246.134025,0.00015652,2]
[340670969,1729632639584,-151.0,0.00015652,2]
[340670970,1729632639595,-151.0,0.00015652,2]
[340670971,1729632639606,-151.0,0.00015652,2]
[340670972,1729632639617,-151.0,0.00015652,2]
[340670973,1729632639626,-197.622745,0.00015652,2]
[340670974,1729632639637,-197.622745,0.00015652,2]
[340670975,1729632639647,-151.0,0.00015652,2]
[340670976,1729632639659,-151.0,0.00015652,2]
[340670977,1729632639669,-217.72828969,0.00015653,2]
[340670978,1729632639678,-199.28423767,0.00015653,2]
[340670979,1729632639687,-500.0,0.00015653,2]
[340670980,1729632639696,-12807.04390586,0.00015654,2]
[340670985,1729632640518,-4584.80798893,0.00015654,2]
[340670986,1729632640531,-45068.67029448,0.00015654,2]
[340670987,1729632640584,-8951.2853301,0.00015654,2]
[340670999,1729632643553,-1210.29858918,0.00015654,2]
[340671013,1729633455694,10000.0,0.00011011,2]
[340671061,1729633832620,-400.0,0.00013973,2]
[340671062,1729633832632,-384.3732587,0.00014489,2]
[340671063,1729633832642,-298.613443,0.00014554,2]
[340671064,1729633832654,-298.613443,0.00015239,2]
[340671065,1729633832664,-300.0,0.00015443,2]
[340671066,1729633832675,-300.0,0.00015443,2]
[340671067,1729633832686,-11362.4398553,0.00015444,2]
[340671068,1729633832700,-571.41303911,0.00015444,2]
[340671070,1729633832710,-257.74229493,0.00015533,2]
[340671071,1729633832720,-184.24778218,0.00015534,2]
[340671073,1729633832730,-6438.89871086,0.0001554,2]
[340671074,1729633832740,-1000.0,0.00015544,2]
[340671075,1729633832749,-184.24778218,0.00015544,2]
[340671076,1729633832759,-2935.39713155,0.00015574,2]
[340671081,1729633838886,-1057.82741794,0.00015574,2]
[340671082,1729633838899,-37.18486013,0.000156,2]
[340671083,1729633838911,-112.92737287,0.000156,2]
[340671084,1729633838922,-338.15779724,0.00015622,2]
[340671085,1729633838931,-202.96859283,0.00015622,2]
[340671086,1729633838942,-500.0,0.00015622,2]
[340671087,1729633838953,-284.4127804,0.00015622,2]
[340671088,1729633838962,-179.52778203,0.00015622,2]
[340671089,1729633838972,-500.0,0.00015622,2]
[340671090,1729633838983,-500.0,0.00015622,2]
[340671091,1729633838994,-500.0,0.00015622,2]
[340671092,1729633839005,-383.22397757,0.00015622,2]
[340671093,1729633839014,-152.49327479,0.00015623,2]
[340671094,1729633839025,-17364.36407045,0.00015623,2]
[340671102,1729633840699,-85.77835555,0.00015623,2]
[340671103,1729633840709,-1088.83856898,0.00015623,2]
[340671104,1729633840722,-32006.63021869,0.00015623,2]
[340671105,1729633840735,-501.55,0.00015623,2]
[340671106,1729633840759,-1198.56049014,0.00015623,2]
[340671113,1729633843654,-43335.65712189,0.00015623,2]
[340671114,1729633843664,-44304.03997449,0.00015624,2]
[340671115,1729633843673,-20231.78992457,0.00015624,2]
[340671116,1729633843685,-17450.142426,0.00015624,2]
[340671117,1729633843695,-15135.69551354,0.00015624,2]
[340671118,1729633843706,-31819.20167374,0.00015624,2]
[340671125,1729633846653,-31176.33921242,0.00015624,2]
[340671126,1729633846664,-151.0,0.00015624,2]
[340671127,1729633846674,-151.0,0.00015624,2]
[340671128,1729633846684,-151.0,0.00015624,2]
[340671129,1729633846693,-151.512266,0.00015624,2]
[340671130,1729633846705,-26716.36302383,0.00015624,2]
[340671164,1729635038056,-400.0,0.00013973,2]
[340671165,1729635038066,-298.613443,0.00014499,2]
[340671166,1729635038076,-500.0,0.00014973,2]
[340671167,1729635038089,-507.0946747,0.00014973,2]
[340671168,1729635038100,-500.0,0.00014973,2]
[340671169,1729635038109,-500.0,0.00014973,2]
[340671170,1729635038119,-500.0,0.00014973,2]
[340671171,1729635038130,-500.0,0.00014973,2]
[340671172,1729635038140,-300.0,0.00014998,2]
[340671173,1729635038150,-300.0,0.00014998,2]
[340671174,1729635038159,-236.71045807,0.00014999,2]
[340671175,1729635038168,-500.0,0.00014999,2]
[340671176,1729635038177,-199.08894628,0.00014999,2]
[340671177,1729635038186,-325.66944743,0.00014999,2]
[340671178,1729635038196,-1488.67911267,0.00015,2]
[340671179,1729635038207,-14987.48105878,0.00015,2]
[340671262,1729636238363,-201.98842544,0.00013317,2]
[340671263,1729636238373,-5543.7167672,0.00013336,2]
[340671264,1729636238382,-250.0,0.00013417,2]
[340671265,1729636238391,-163.756134,0.00013497,2]
[340671266,1729636238401,-163.756134,0.00013585,2]
[340671267,1729636238410,-805.1842593,0.0001359,2]
[340671268,1729636238419,-163.756134,0.00013673,2]
[340671269,1729636238429,-300.0,0.00013698,2]
[340671270,1729636238438,-300.0,0.00013698,2]
[340671271,1729636238448,-973.971789,0.00013699,2]
[340671272,1729636238457,-891.7276,0.00013699,2]
[340671273,1729636238467,-163.756134,0.00013761,2]
[340671274,1729636238478,-163.756134,0.00013849,2]
[340671275,1729636238488,-163.756134,0.00013936,2]
[340671276,1729636238498,-400.0,0.00013973,2]
[340671277,1729636238508,-163.756134,0.00014024,2]
[340671278,1729636238519,-163.756134,0.00014112,2]
[340671279,1729636238528,-163.756134,0.000142,2]
[340671280,1729636238537,-973.971789,0.00014384,2]
[340671281,1729636238547,-8071.24120499,0.00014753,2]
[340671282,1729636238557,-520.00484481,0.00014777,2]
[340671283,1729636238568,-520.00484478,0.00014803,2]
[340671284,1729636238577,-520.00484478,0.00014829,2]
[340671285,1729636238587,-460.21579833,0.00014852,2]
[340671286,1729636238596,-500.0,0.00014852,2]
[340671287,1729636238606,-500.0,0.00014852,2]
[340671288,1729636238615,-500.0,0.00014852,2]
[340671289,1729636238626,-500.0,0.00014852,2]
[340671290,1729636238635,-500.0,0.00014852,2]
[340671291,1729636238645,-500.0,0.00014852,2]
[340671292,1729636238654,-572.86557714,0.00014852,2]
[340671293,1729636238664,-500.0,0.00014852,2]
[340671294,1729636238674,-500.0,0.00014852,2]
[340671295,1729636238683,-500.0,0.00014852,2]
[340671296,1729636238694,-500.0,0.00014852,2]
[340671297,1729636238703,-500.0,0.00014852,2]
[340671298,1729636238713,-500.0,0.00014852,2]
[340671299,1729636238723,-500.0,0.00014852,2]
[340671300,1729636238732,-500.0,0.00014852,2]
[340671301,1729636238742,-500.0,0.00014852,2]
[340671302,1729636238751,-500.0,0.00014852,2]
[340671303,1729636238761,-500.0,0.00014852,2]
[340671304,1729636238770,-500.0,0.00014852,2]
[340671305,1729636238780,-500.0,0.00014852,2]
[340671306,1729636238790,-500.0,0.00014852,2]
[340671307,1729636238800,-500.0,0.00014852,2]
[340671308,1729636238809,-500.0,0.00014852,2]
[340671309,1729636238819,-500.0,0.00014852,2]
[340671310,1729636238828,-500.0,0.00014852,2]
[340671311,1729636238838,-500.0,0.00014852,2]
[340671312,1729636238847,-500.0,0.00014852,2]
[340671313,1729636238857,-500.0,0.00014852,2]
[340671314,1729636238866,-500.0,0.00014852,2]
[340671315,1729636238875,-500.0,0.00014852,2]
[340671316,1729636238884,-500.0,0.00014852,2]
[340671317,1729636238894,-500.0,0.00014852,2]
[340671318,1729636238902,-500.0,0.00014852,2]
[340671319,1729636238911,-500.0,0.00014852,2]
[340671320,1729636238921,-500.0,0.00014852,2]
[340671321,1729636238931,-500.0,0.00014852,2]
[340671322,1729636238940,-500.0,0.00014852,2]
[340671323,1729636238950,-500.0,0.00014852,2]
[340671324,1729636238959,-500.0,0.00014852,2]
[340671325,1729636238969,-500.0,0.00014852,2]
[340671326,1729636238978,-500.0,0.00014852,2]
[340671327,1729636238987,-500.0,0.00014852,2]
[340671328,1729636238997,-500.0,0.00014852,2]
[340671329,1729636239006,-500.0,0.00014852,2]
[340671330,1729636239015,-500.0,0.00014852,2]
[340671331,1729636239025,-500.0,0.00014852,2]
[340671332,1729636239035,-500.0,0.00014852,2]
[340671333,1729636239044,-500.0,0.00014852,2]
[340671334,1729636239054,-500.0,0.00014852,2]
[340671335,1729636239064,-500.0,0.00014852,2]
[340671336,1729636239074,-500.0,0.00014852,2]
[340671337,1729636239084,-500.0,0.00014852,2]
[340671338,1729636239094,-500.0,0.00014852,2]
[340671339,1729636239104,-500.0,0.00014852,2]
[340671340,1729636239115,-500.0,0.00014852,2]
[340671341,1729636239125,-410.26268631,0.00014852,2]
[340671342,1729636239134,-16677.01792809,0.00014852,2]
[340671343,1729636239144,-565.69313847,0.00014852,2]
[340671344,1729636239153,-40444.12928928,0.00014853,2]
[340671345,1729636239166,-520.00484478,0.00014854,2]
[340671346,1729636239175,-165.69732065,0.00014866,2]
[340671347,1729636239184,-577.9686132,0.00014866,2]
[340671348,1729636239193,-288.785469,0.00014867,2]
[340671349,1729636239203,-288.785469,0.00014867,2]
[340671350,1729636239212,-247.034588,0.00014867,2]
[340671351,1729636239221,-151.0,0.00014867,2]
[340671352,1729636239230,-224.587698,0.00014867,2]
[340671353,1729636239239,-224.587698,0.00014867,2]
[340671354,1729636239249,-151.0,0.00014867,2]
[340671355,1729636239260,-151.0,0.00014867,2]
[340671356,1729636239270,-14947.9073692,0.00014867,2]
[340671357,1729636239280,-66655.7110539,0.00014867,2]
[340671358,1729636239289,-288.785469,0.0001487,2]
[340671359,1729636239299,-288.785469,0.0001487,2]
[340671360,1729636239309,-202.959414,0.0001487,2]
[340671361,1729636239318,-224.587698,0.0001487,2]
[340671362,1729636239327,-224.587698,0.0001487,2]
[340671363,1729636239337,-14947.9073692,0.0001487,2]
[340671364,1729636239347,-66655.7110539,0.0001487,2]
[340671365,1729636239356,-500.0,0.00014873,2]
[340671366,1729636239366,-591.2668584,0.00014873,2]
[340671367,1729636239375,-254.70268798,0.00014873,2]
[340671368,1729636239385,-500.0,0.00014873,2]
[340671369,1729636239394,-500.0,0.00014873,2]
[340671370,1729636239404,-500.0,0.00014873,2]
[340671371,1729636239413,-500.0,0.00014873,2]
[340671372,1729636239423,-500.0,0.00014873,2]
[340671373,1729636239432,-500.0,0.00014873,2]
[340671374,1729636239442,-500.0,0.00014873,2]
[340671375,1729636239452,-500.0,0.00014873,2]
[340671376,1729636239461,-151.0,0.00014878,2]
[340671377,1729636239471,-151.0,0.00014878,2]
[340671378,1729636239481,-151.0,0.0001488,2]
[340671379,1729636239490,-151.0,0.0001488,2]
[340671380,1729636239500,-151.0,0.0001488,2]
[340671381,1729636239510,-188.275566,0.0001488,2]
[340671382,1729636239520,-188.275566,0.0001488,2]
[340671383,1729636239529,-151.0,0.0001488,2]
[340671384,1729636239539,-151.0,0.0001488,2]
[340671385,1729636239548,-203.688168,0.0001488,2]
[340671390,1729636239770,-180.90007,0.0001488,2]
[340671392,1729636239780,-203.688168,0.0001488,2]
[340671394,1729636239791,-180.90007,0.0001488,2]
[340671396,1729636239803,-151.0,0.0001488,2]
[340671398,1729636239815,-151.0,0.0001488,2]
[340671400,1729636239825,-151.0,0.0001488,2]
[340671401,1729636239835,-520.00484478,0.0001488,2]
[340671403,1729636239847,-489.469351,0.0001488,2]
[340671405,1729636239857,-489.469351,0.0001488,2]
[340671406,1729636239866,-151.0,0.0001488,2]
[340671408,1729636239875,-151.0,0.0001488,2]
[340671410,1729636239887,-177.860471,0.0001488,2]
[340671412,1729636239897,-177.860471,0.0001488,2]
[340671414,1729636239908,-714.356498,0.0001488,2]
[340671416,1729636239919,-714.356498,0.0001488,2]
[340671418,1729636239928,-322.657935,0.0001488,2]
[340671420,1729636239938,-345.419078,0.0001488,2]
[340671422,1729636239951,-345.419078,0.0001488,2]
[340671424,1729636239960,-322.657935,0.0001488,2]
[340671426,1729636239969,-266.184579,0.0001488,2]
[340671427,1729636239979,-345.419078,0.0001488,2]
[340671428,1729636239988,-345.419078,0.0001488,2]
[340671429,1729636239997,-266.184579,0.0001488,2]
[340671430,1729636240006,-288.785469,0.0001488,2]
[340671431,1729636240014,-288.785469,0.0001488,2]
[340671432,1729636240024,-224.587698,0.0001488,2]
[340671433,1729636240034,-224.587698,0.0001488,2]
[340671434,1729636240044,-29363.36942393,0.0001488,2]
[340671436,1729636240055,-184.128606,0.0001489,2]
[340671438,1729636240066,-151.0,0.0001489,2]
[340671440,1729636240075,-162.002865,0.0001489,2]
[340671441,1729636240084,-151.0,0.0001489,2]
[340671442,1729636240093,-300.176006,0.0001489,2]
[340671443,1729636240102,-151.0,0.0001489,2]
[340671444,1729636240112,-300.176006,0.0001489,2]
[340671446,1729636240121,-151.0,0.0001489,2]
[340671448,1729636240130,-151.0,0.0001489,2]
[340671449,1729636240139,-151.0,0.0001489,2]
[340671451,1729636240148,-188.275566,0.0001489,2]
[340671453,1729636240161,-188.275566,0.0001489,2]
[340671455,1729636240171,-151.0,0.0001489,2]
[340671457,1729636240182,-151.0,0.0001489,2]
[340671459,1729636240193,-151.0,0.0001489,2]
[340671461,1729636240204,-151.0,0.0001489,2]
[340671462,1729636240214,-203.688168,0.0001489,2]
[340671464,1729636240224,-180.90007,0.0001489,2]
[340671466,1729636240234,-203.688168,0.0001489,2]
[340671468,1729636240243,-180.90007,0.0001489,2]
[340671470,1729636240254,-151.0,0.0001489,2]
[340671472,1729636240264,-285.711451,0.0001489,2]
[340671473,1729636240275,-285.711451,0.0001489,2]
[340671474,1729636240284,-489.469351,0.0001489,2]
[340671475,1729636240293,-489.469351,0.0001489,2]
[340671476,1729636240302,-177.860471,0.0001489,2]
[340671477,1729636240311,-177.860471,0.0001489,2]
[340671478,1729636240320,-714.356498,0.0001489,2]
[340671479,1729636240329,-714.356498,0.0001489,2]
[340671480,1729636240339,-322.657935,0.0001489,2]
[340671481,1729636240348,-322.657935,0.0001489,2]
[340671482,1729636240357,-266.184579,0.0001489,2]
[340671483,1729636240366,-266.184579,0.0001489,2]
[340671484,1729636240376,-1000.0,0.0001489,2]
[340671485,1729636240385,-151.0,0.000149,2]
[340671486,1729636240395,-151.0,0.000149,2]
[340671487,1729636240406,-151.0,0.000149,2]
[340671488,1729636240416,-151.0,0.000149,2]
[340671489,1729636240427,-151.0,0.000149,2]
[340671490,1729636240438,-151.0,0.000149,2]
[340671491,1729636240447,-173.156103,0.000149,2]
[340671492,1729636240457,-173.156103,0.000149,2]
[340671493,1729636240466,-231.123131,0.000149,2]
[340671494,1729636240475,-231.123131,0.000149,2]
[340671495,1729636240484,-151.0,0.000149,2]
[340671496,1729636240494,-151.0,0.000149,2]
[340671497,1729636240505,-151.0,0.000149,2]
[340671498,1729636240515,-151.0,0.000149,2]
[340671499,1729636240527,-151.0,0.000149,2]
[340671500,1729636240536,-151.0,0.000149,2]
[340671501,1729636240546,-219.550448,0.000149,2]
[340671502,1729636240556,-401.783917,0.000149,2]
[340671503,1729636240567,-219.550448,0.000149,2]
[340671504,1729636240576,-401.783917,0.000149,2]
[340671505,1729636240586,-151.0,0.000149,2]
[340671506,1729636240595,-166.421882,0.000149,2]
[340671507,1729636240604,-166.421882,0.000149,2]
[340671508,1729636240613,-297.581896,0.000149,2]
[340671509,1729636240622,-151.0,0.000149,2]
[340671510,1729636240633,-345.419078,0.000149,2]
[340671511,1729636240643,-345.419078,0.000149,2]
[340671512,1729636240654,-11098.92024516,0.0001496,2]
[340671513,1729636240664,-288.785469,0.00014962,2]
[340671514,1729636240673,-288.785469,0.00014962,2]
[340671515,1729636240682,-288.785469,0.00014962,2]
[340671516,1729636240691,-288.785469,0.00014962,2]
[340671517,1729636240701,-224.587698,0.00014962,2]
[340671518,1729636240711,-224.587698,0.00014962,2]
[340671519,1729636240721,-224.587698,0.00014962,2]
[340671520,1729636240730,-224.587698,0.00014962,2]
[340671521,1729636240741,-14947.9073692,0.00014963,2]
[340671522,1729636240752,-34630.08354145,0.00014963,2]
[340671523,1729636241247,-32025.62751245,0.00014963,2]
[340671524,1729636241258,-151.0,0.0001497,2]
[340671525,1729636241268,-151.0,0.0001497,2]
[340671526,1729636241281,-300.176006,0.0001497,2]
[340671527,1729636241291,-151.0,0.0001497,2]
[340671528,1729636241301,-300.176006,0.0001497,2]
[340671529,1729636241310,-151.0,0.0001497,2]
[340671530,1729636241320,-151.0,0.0001497,2]
[340671531,1729636241330,-188.275566,0.0001497,2]